Workbook

Sheet 25.12
A2: МБОУ "СОШ №33" НМР РТ | D2: Отд./корп | E2: 1 неделя | H2: День | I2: 2023-12-25
I3: ,
A4: Раздел | B4: № рец. | C4: Блюдо | D4: Выход, г | E4: Цена | F4: Ккал | G4: Белки | H4: Жиры | I4: Угл-ды
A5: Завтрак
A6: хлеб | B6: 1 | C6: Бутерброд с маслом сливочным (30/10) | D6: 40 | F6: 136.00 | G6: 2.36 | H6: 7.49 | I6: 14.89
A7: 2 блюдо | B7: 175 | C7: Каша "Дружба" молочная с маслом сливочным | D7: 180/5 | F7: 217.40 | G7: 10.48 | H7: 10.43 | I7: 25.24
A8: хлеб | B8: 377 | C8: Чай с сахаром и лимоном | D8: 187/8/5 | F8: 34.02 | G8: 0.13 | H8: 0.02 | I8: 8.20
A9: хлеб | C9: Батон нарезной | D9: 75 | F9: 195.52 | G9: 5.60 | H9: 2.16 | I9: 38.36
D10: 500 | E10: 37.55 | F10: =SUM(F6:F9) -> 582.94 | G10: =SUM(G6:G9) -> 18.57 | H10: 20.10 | I10: 86.69
A11: Обед
A12: 1 блюдо | B12: 88 | C12: Щи из свежей капусты с картофелем, со сметаной | D12: 200/5 | F12: 79.90 | G12: 3.74 | H12: 14.71 | I12: 6.50
A13: 2 блюдо | C13: Шницель куриный | D13: 90 | F13: 115.51 | G13: 7.83 | H13: 10.02 | I13: 5.13
A14: гарнир | B14: 182 | C14: Макаронные отварные с маслом сливочным | D14: 150/3 | F14: 226.10 | G14: 5.78 | H14: 1.28 | I14: 42.96
A15: напиток | B15: 389 | C15: Напиток из сухофруктов | D15: 200 | F15: 132.80 | G15: 0.70 | H15: 0.10 | I15: 32.00
A16: хлеб | C16: Хлеб ржаной/пшеничный | D16: 25/45 | F16: 147.85 | G16: 1.90 | H16: 0.20 | I16: 12.30
D17: 718 | E17: 77.59 | F17: =SUM(F12:F16) -> 702.16 | G17: =SUM(G12:G16) -> 19.95 | H17: 26.31 | I17: 98.89
C18: бесп питание младшие + допол. питание | D18: =SUM(D10+D17) -> 1218 | E18: 115.14 | F18: =SUM(F10+F17) -> 1285.10 | G18: =SUM(G10+G17) -> 38.52 | H18: 46.41 | I18: 185.58
A20: Горячий завтрак (младшие)
A21: хлеб | C21: Бутерброд с маслом сливочным | D21: 40 | F21: 136.00 | G21: 2.36 | H21: 7.49 | I21: 14.89
A22: 2 блюдо | C22: Шницель куриный | D22: 90 | F22: 115.51 | G22: 7.83 | H22: 10.02 | I22: 5.13
A23: гарнир | B23: 182 | C23: Макаронные отварные с маслом сливочным | D23: 150/3 | F23: 238.10 | G23: 6.78 | H23: 1.28 | I23: 43.96
A24: гор.напиток | B24: 376 | C24: Чай с сахаром и лимоном | D24: 187/8/5 | F24: 34.02 | G24: 0.13 | H24: 0.02 | I24: 8.20
A25: хлеб | C25: Хлеб ржаной | D25: 20 | F25: 39.60 | G25: 1.32 | H25: 0.24 | I25: 7.92
C27: бесплатное питание младшие | D27: 503 | E27: 77.59 | F27: =F21+F22+F23+F24+F25+F26 -> 563.23 | G27: =G21+G22+G23+G24+G25+G26 -> 18.42 | H27: =H21+H22+H23+H24+H25+H26 -> 19.05 | I27: =I21+I22+I23+I24+I25+I26 -> 80.10
A29: Раздел | B29: № рец. | C29: Блюдо | D29: Выход, г | E29: Цена | F29: Ккал | G29: Белки | H29: Жиры | I29: Угл-ды
A30: Старшие
C31: Круассан | D31: 50 | F31: 370.00 | G31: 23.00 | H31: 37.00 | I31: 7.45
A32: 2 блюдо | C32: Шницель куриный | D32: 100 | F32: 322.00 | G32: 15.22 | H32: 22.14 | I32: 15.32
A33: гарнир | B33: 303 | C33: Макаронные отварные с маслом сливочным | D33: 180/3 | F33: 235.14 | G33: 6.66 | H33: 9.04 | I33: 31.80
A34: гор.напиток | B34: 376 | C34: Чай с сахаром и лимоном | D34: 187/8/5 | F34: 34.02 | G34: 0.13 | H34: 0.02 | I34: 8.20
A35: хлеб | C35: Хлеб ржаной | D35: 20 | F35: 36.60 | G35: 3.93 | H35: 0.54 | I35: 24.66
C37: питание старшие | D37: 553 | E37: 79.00 | F37: =SUM(F31:F35) -> 997.76 | G37: =SUM(G31:G35) -> 48.94 | H37: 68.74 | I37: 87.43

Sheet 26.12
A2: МБОУ "СОШ №33" НМР РТ | D2: Отд./корп | E2: 1 неделя | H2: День | I2: 2023-12-26
A4: Раздел | B4: № рец. | C4: Блюдо | D4: Выход, г | E4: Цена | F4: Ккал | G4: Белки | H4: Жиры | I4: Угл-ды
A5: Завтрак
A6: хлеб | C6: Бутерброд с сыром и маслом сливочным (30/15/5) | D6: 50 | F6: 155.00 | G6: 6.27 | H6: 7.86 | I6: 14.83
A7: 2 блюдо | B7: 173 | C7: Каша геркулесовая молочная | D7: 200 | F7: 215.00 | G7: 6.23 | H7: 6.86 | I7: 32.00
A8: гор.напиток | C8: Кофейный напиток с молоком | D8: 200 | F8: 32.00 | G8: 0.07 | H8: 0.02 | I8: 8.00
A9: хлеб | C9: Батон нарезной | D9: 50 | F9: 131.00 | G9: 3.75 | H9: 1.45 | I9: 25.70
D10: =SUM(D6:D9) -> 500 | E10: 37.55 | F10: =SUM(F6:F9) -> 533.00 | G10: =SUM(G6:G9) -> 16.32 | H10: 16.19 | I10: 80.53
A11: Обед
A13: 1 блюдо | B13: 96 | C13: Рассольник Ленинградский со сметаной | D13: 200/5 | F13: 143.90 | G13: 7.74 | H13: 12.82 | I13: 9.76
A14: 2 блюдо | B14: 292 | C14: Овощи тушеные с мясом | D14: 50/150 | F14: 363.45 | G14: 12.69 | H14: 13.53 | I14: 44.88
A15: гарнир | B15: 71 | C15: Горошек консервированный (доп.гарнир) | D15: 30 | F15: 17.76 | G15: 0.87 | H15: 0.82 | I15: 1.74
A16: напиток | C16: Напиток из изюма и яблок | D16: 200 | F16: 119.94 | G16: 0.38 | H16: 0.13 | I16: 29.30
A17: хлеб | C17: Хлеб ржаной/пшеничный | D17: 35/30 | F17: 135.71 | G17: 4.44 | H17: 0.60 | I17: 27.91
D18: 700 | E18: 77.59 | F18: =SUM(F12:F17) -> 780.76 | G18: =SUM(G12:G17) -> 26.12 | H18: =SUM(H12:H17) -> 27.90 | I18: =SUM(I12:I17) -> 113.59
C19: бесп питание младшие + допол. питание | D19: =D10+D18 -> 1200 | E19: 115.14 | F19: =SUM(F10+F18) -> 1313.76 | G19: =SUM(G10+G18) -> 42.44 | H19: =SUM(H10+H18) -> 44.09 | I19: =SUM(I10+I18) -> 194.12
A21: Горячий завтрак (младшие)
A23: 2 блюдо | B23: 292 | C23: Овощи тушеные с мясом | D23: 50/150 | F23: 363.45 | G23: 12.69 | H23: 13.53 | I23: 44.88
A24: гарнир | B24: 71 | C24: Горошек консервированный (доп.гарнир) | D24: 50 | F24: 29.60 | G24: 1.44 | H24: 1.36 | I24: 2.89
A25: гор.напиток | C25: Кофейный напиток с молоком | D25: 200 | F25: 32.00 | G25: 0.07 | H25: 0.02 | I25: 8.00
A26: хлеб | C26: Хлеб ржаной/пшеничный | D26: 20/30 | F26: 110.10 | G26: 3.60 | H26: 0.48 | I26: 22.68
C28: бесплатное питание младшие | D28: 500 | E28: 77.59 | F28: =SUM(F22:F27) -> 535.15 | G28: =SUM(G22:G27) -> 17.80 | H28: 15.39 | I28: 78.45
A30: Раздел | B30: № рец. | C30: Блюдо | D30: Выход, г | E30: Цена | F30: Ккал | G30: Белки | H30: Жиры | I30: Угл-ды
A31: Старшие
A32: хол.закуска | C32: Горошек консервированный (доп.гарнир) | D32: 40 | F32: 23.68 | G32: 1.15 | H32: 1.09 | I32: 1.09
A33: 2 блюдо | B33: 292 | C33: Овощи тушеные с мясом | D33: 250 | F33: 454.31 | G33: 15.86 | H33: 16.92 | I33: 56.10
A34: гор.напиток | C34: Кофейный напиток с молоком | D34: 200 | F34: 32.00 | G34: 0.07 | H34: 0.02 | I34: 8.00
A35: хлеб | C35: Хлеб ржаной/пшеничный | D35: 30/30 | F35: 123.96 | G35: 4.06 | H35: 0.56 | I35: 25.45
C38: питание старшие | D38: 550 | E38: 79.00 | F38: =SUM(F32:F36) -> 633.95 | G38: =SUM(G32:G36) -> 21.14 | H38: 18.59 | I38: 90.64

Sheet 27.12
A2: МБОУ "СОШ №33" НМР РТ | D2: Отд./корп | E2: 1 неделя | H2: День | I2: 2023-12-27
A4: Раздел | B4: № рец. | C4: Блюдо | D4: Выход, г | E4: Цена | F4: Ккал | G4: Белки | H4: Жиры | I4: Угл-ды
A5: Завтрак
A6: хлеб | B6: 1 | C6: Бутерброд с повидлом | D6: 60 | F6: 109.00 | G6: 1.50 | H6: 2.90 | I6: 21.80
A7: 2 блюдо | B7: 174 | C7: Каша молочная гречневая с маслом сливочным | D7: 150/3 | F7: 375.05 | G7: 14.78 | H7: 17.48 | I7: 36.21
A8: гор.напиток | B8: 376 | C8: Чай с сахаром | D8: 200 | F8: 32.00 | G8: 0.07 | H8: 0.02 | I8: 8.00
A9: хлеб | C9: Батон нарезной | D9: 50 | F9: 131.00 | G9: 3.75 | H9: 1.45 | I9: 25.70
D10: 463 | E10: 37.55 | F10: =SUM(F6:F9) -> 647.05 | G10: =SUM(G6:G9) -> 20.10 | H10: =SUM(H6:H9) -> 21.85 | I10: =SUM(I6:I9) -> 91.71
A11: Обед
A12: 1 блюдо | B12: 102 | C12: Суп лапша домашняя с картофелем | D12: 200 | F12: 92.60 | G12: 5.05 | H12: 5.43 | I12: 9.30
A13: 2 блюдо | B13: 294 | C13: Плов из куриной грудки | D13: 50/150 | F13: 370.50 | G13: 14.42 | H13: 18.43 | I13: 40.93
A14: холод.закуска | C14: Кукуруза консервированный (доп.гарнир) | D14: 30 | F14: 29.79 | G14: 0.86 | H14: 1.85 | I14: 2.41
A15: напиток | B15: 349 | C15: Кисель | D15: 200 | F15: 143.60 | G15: 0.60 | H15: 0.10 | I15: 30.20
A16: хлеб | C16: Хлеб ржаной/пшеничный | D16: 25/45 | F16: 147.85 | G16: 4.87 | H16: 0.74 | I16: 30.12
D17: 700 | E17: 77.59 | F17: =SUM(F12:F16) -> 784.34 | G17: =SUM(G12:G16) -> 25.80 | H17: =SUM(H12:H16) -> 26.55 | I17: =SUM(I12:I16) -> 112.96
C18: бесп питание младшие + допол. питание | D18: =SUM(D10+D17) -> 1163 | E18: 115.14 | F18: 1431.39 | G18: 45.90 | H18: 48.40 | I18: 204.67
A20: Горячий завтрак (младшие)
A21: хлеб | C21: Бутерброд с повидлом (30/30) | D21: 60 | F21: 109.00 | G21: 1.50 | H21: 2.90 | I21: 21.80
A22: 2 блюдо | B22: 294 | C22: Плов из куриной грудки | D22: 50/150 | F22: 370.50 | G22: 14.42 | H22: 18.43 | I22: 40.93
A23: гор.напиток | B23: 376 | C23: Чай с сахаром | D23: 200 | F23: 32.00 | G23: 0.07 | H23: 0.02 | I23: 8.00
A24: хлеб | C24: Хлеб ржаной/пшеничный | D24: 20/30 | F24: 110.10 | G24: 3.60 | H24: 0.48 | I24: 22.68
C26: бесплатное питание младшие | D26: 510 | E26: 77.59 | F26: =SUM(F21:F25) -> 621.60 | G26: =SUM(G21:G25) -> 19.59 | H26: 21.83 | I26: 93.41
A28: Раздел | B28: № рец. | C28: Блюдо | D28: Выход, г | E28: Цена | F28: Ккал | G28: Белки | H28: Жиры | I28: Угл-ды
A29: Старшие
A30: хлеб | C30: Бутерброд с повидлом (30/30) | D30: 60 | F30: 109.00 | G30: 1.50 | H30: 2.90 | I30: 21.80
A31: 2 блюдо | B31: 294 | C31: Плов из куриной грудки | D31: 250 | F31: 463.13 | G31: 18.03 | H31: 23.04 | I31: 51.16
A32: гор.напиток | B32: 376 | C32: Чай с сахаром | D32: 200 | F32: 32.00 | G32: 0.07 | H32: 0.02 | I32: 8.00
A33: хлеб | C33: Хлеб ржаной/пшеничный | D33: 20/20 | F33: 86.60 | G33: 2.82 | H33: 0.40 | I33: 17.76
C35: питание старшие | D35: 550 | E35: 79.00 | F35: =SUM(F30:F33) -> 690.73 | G35: =SUM(G30:G33) -> 22.42 | H35: =SUM(H30:H33) -> 26.36 | I35: =SUM(I30:I33) -> 98.72

Sheet 28.12
A2: МБОУ "СОШ №33" НМР РТ | D2: Отд./корп | E2: 1 неделя | H2: День | I2: 2023-12-28
A4: Раздел | B4: № рец. | C4: Блюдо | D4: Выход, г | E4: Цена | F4: Ккал | G4: Белки | H4: Жиры | I4: Угл-ды
A5: Горячий завтрак (младшие)
A6: холод.закуска | C6: Морковь порц.(доп.гарнир) | D6: 50 | F6: 340.09 | G6: 13.19 | H6: 19.59 | I6: 28.15
A7: 2 блюдо | B7: 284 | C7: Запеканка картофельная с мясом | D7: 180 | F7: 32.47 | G7: 0.65 | H7: 0.05 | I7: 3.41
A8: напиток | B8: 388 | C8: Напиток из шиповника | D8: 200 | F8: 84.80 | G8: 0.66 | H8: 0.09 | I8: 20.04
A9: хлеб | C9: Хлеб ржаной/пшеничный | D9: 40/30 | F9: 149.70 | G9: 4.92 | H9: 0.72 | I9: 30.60
C12: бесплатное питание младшие | D12: 500 | E12: 77.59 | F12: =SUM(F6:F10) -> 607.06 | G12: =SUM(G6:G10) -> 19.42 | H12: =SUM(H6:H10) -> 20.45 | I12: =SUM(I6:I10) -> 82.20
A14: Раздел | B14: № рец. | C14: Блюдо | D14: Выход, г | E14: Цена | F14: Ккал | G14: Белки | H14: Жиры | I14: Угл-ды
A15: Старшие
A16: холод.закуска | C16: Морковь порц.(доп.гарнир) | D16: 50 | F16: 472.35 | G16: 18.32 | H16: 27.21 | I16: 39.10
A17: 2 блюдо | B17: 284 | C17: Запеканка картофельная с мясом и с маслом сливочным | D17: 240/10 | F17: 32.47 | G17: 0.65 | H17: 0.05 | I17: 3.41
A18: гор.напиток | B18: 388 | C18: Напиток из шиповника | D18: 200 | F18: 84.80 | G18: 0.66 | H18: 0.09 | I18: 20.04
A19: хлеб | C19: Хлеб ржаной/пшеничный | D19: 20/30 | F19: 110.10 | G19: 3.60 | H19: 0.48 | I19: 22.68
C21: питание старшие | D21: 550 | E21: 79.00 | F21: =SUM(F16:F20) -> 699.72 | G21: =SUM(G16:G20) -> 23.23 | H21: 27.83 | I21: 85.23

Sheet 29.12
A2: МБОУ "СОШ №33" НМР РТ | D2: Отд./корп | E2: 1 неделя | H2: День | I2: 2023-12-29
A4: Раздел | B4: № рец. | C4: Блюдо | D4: Выход, г | E4: Цена | F4: Ккал | G4: Белки | H4: Жиры | I4: Угл-ды
A5: Горячий завтрак (младшие)
A6: хлеб | C6: Бутерброд с повидлом | D6: 60 | F6: 109.00 | G6: 1.50 | H6: 2.90 | I6: 21.80
A7: 2 блюдо | B7: 223 | C7: Птица тушеная в сметанно-томатном соусе | D7: 50/50 | F7: 166.00 | G7: 11.65 | H7: 15.56 | I7: 3.51
A8: гарнир | B8: 382 | C8: Макароны отварные с маслом сливочным | D8: 150/3 | F8: 226.10 | G8: 5.78 | H8: 1.28 | I8: 42.96
A9: гор.напиток | C9: Чай с сахаром и лимоном | D9: 187/8/5 | F9: 34.02 | G9: 0.13 | H9: 0.02 | I9: 8.20
A10: хлеб | C10: Хлеб пшеничный | D10: 30 | F10: 70.50 | G10: 2.28 | H10: 0.24 | I10: 14.76
C11: бесплатное питание младшие | D11: 583 | E11: 77.59 | F11: =SUM(F6:F9) -> 535.12 | G11: =SUM(G6:G9) -> 19.06 | H11: =SUM(H6:H9) -> 19.76 | I11: =SUM(I6:I9) -> 76.47
A13: Раздел | B13: № рец. | C13: Блюдо | D13: Выход, г | E13: Цена | F13: Ккал | G13: Белки | H13: Жиры | I13: Угл-ды
A14: Старшие
A15: хлеб | B15: 134 | C15: Печенье | D15: 35 | F15: 142.45 | G15: 2.59 | H15: 3.29 | I15: 11.58
A16: 2 блюдо | B16: 290 | C16: Птица тушеная в сметанно-томатном соусе | D16: 50/50 | F16: 166.00 | G16: 11.65 | H16: 11.66 | I16: 3.51
A17: гарнир | B17: 203 | C17: Макароны отварные с маслом сливочным | D17: 180/5 | F17: 235.14 | G17: 6.66 | H17: 9.04 | I17: 31.80
A18: гор.напиток | B18: 377 | C18: Чай с сахаром и лимоном | D18: 187/8/5 | F18: 34.02 | G18: 0.13 | H18: 0.02 | I18: 8.20
A19: хлеб | C19: Хлеб ржаной | D19: 30 | F19: 53.46 | G19: 1.78 | H19: 0.32 | I19: 10.69
C20: питание старшие | D20: 550 | E20: 79.00 | F20: =SUM(F15:F19) -> 631.07 | G20: =SUM(G15:G19) -> 22.81 | H20: 24.33 | I20: 65.78
